[Event "FIDE WCCC Girls-10 2024"]
[Site "Montesilvano"]
[Date "2024.11.18"]
[Round "3.30"]
[White "Afandi, Sadagul"]
[Black "Kuvandikova, Nafisa"]
[Result "1/2-1/2"]
[ECO "B43"]
[WhiteElo "1625"]
[BlackElo "1512"]
[PlyCount "120"]
[EventDate "2024.11.18"]
[EventType "swiss"]
[EventCountry "ITA"]
[TimeControl "5400+30"]

1. e4 {[%emt 0:00:02]} c5 {[%emt 0:00:10]} 2. Nf3 {[%emt 0:00:07]} e6 {[%emt 0:00:10]} 3. d4 {[%emt 0:00:08]} cxd4 {[%emt 0:00:21]} 4. Nxd4 {[%emt 0:00:07]} a6 {[%emt 0:00:10]} 5. Nc3 {[%emt 0:00:12]} Qc7 {[%emt 0:00:05]} 6. a3 {[%emt 0:00:40]} Nf6 {[%emt 0:00:29]} 7. f3 {[%emt 0:00:27]} Be7 {[%emt 0:01:15]} 8. Be3 {[%emt 0:00:53]} d6 {[%emt 0:02:01]} 9. Qd2 {[%emt 0:03:58]} Bd7 {[%emt 0:01:08]} 10. g4 {[%emt 0:02:45]} h6 {[%emt 0:01:12]} 11. h4 {[%emt 0:02:06]} b5 {[%emt 0:02:19]} 12. Bd3 {[%emt 0:06:39]} Nc6 {[%emt 0:00:37]} 13. Ke2 {[%emt 0:09:41]} Ne5 {[%emt 0:02:21]} 14. Rag1 {[%emt 0:09:16]} O-O-O {[%emt 0:00:35]} 15. b3 {[%emt 0:03:56]} Kb8 {[%emt 0:10:16]} 16. Na2 {[%emt 0:05:10]} d5 {[%emt 0:00:28]} 17. g5 {[%emt 0:11:51]} hxg5 {[%emt 0:06:56]} 18. hxg5 {[%emt 0:00:26]} dxe4 {[%emt 0:01:05]} 19. fxe4 {[%emt 0:03:52]} Nfg4 {[%emt 0:01:08]} 20. Bf4 {[%emt 0:08:14]} Bd6 {[%emt 0:05:01]} 21. Nf3 {[%emt 0:12:26]} Rxh1 {[%emt 0:01:46]} 22. Rxh1 {[%emt 0:00:18]} Nxd3 {[%emt 0:01:33]} 23. Bxd6 {[%emt 0:04:12]} Qxd6 {[%emt 0:00:47]} 24. cxd3 {[%emt 0:03:39]} Bc6 {[%emt 0:01:22]} 25. Nb4 {[%emt 0:03:48]} Bb7 {[%emt 0:00:29]} 26. Rg1 {[%emt 0:02:33]} Ne5 {[%emt 0:00:28]} 27. Qf4 {[%emt 0:03:07]} Nxf3 {[%emt 0:02:36]} 28. Qxd6+ {[%emt 0:00:36]} Rxd6 {[%emt 0:00:19]} 29. Kxf3 {[%emt 0:00:17]} a5 {[%emt 0:00:18]} 30. Nc2 {[%emt 0:02:08]} Rxd3+ {[%emt 0:00:09]} 31. Kf4 {[%emt 0:00:36]} Rxb3 {[%emt 0:00:29]} 32. Rh1 {[%emt 0:00:38]} Rc3 {[%emt 0:00:55]} 33. Nd4 {[%emt 0:00:23]} Rc4 {[%emt 0:00:27]} 34. Rd1 {[%emt 0:00:54]} b4 {[%emt 0:00:38]} 35. axb4 {[%emt 0:01:55]} axb4 {[%emt 0:00:12]} 36. e5 {[%emt 0:00:00]} b3 {[%emt 0:00:43]} 37. Ke3 {[%emt 0:00:08]} b2 {[%emt 0:03:10]} 38. Rb1 {[%emt 0:00:39]} Rb4 {[%emt 0:00:15]} 39. Kd3 {[%emt 0:00:13]} Kc7 {[%emt 0:04:52]} 40. Kc3 {[%emt 0:00:24]} Rb6 {[%emt 0:00:54]} 41. Rxb2 {[%emt 0:00:21]} Rxb2 {[%emt 0:01:13]} 42. Kxb2 {[%emt 0:00:02]} Kb6 {[%emt 0:00:14]} 43. Kc3 {[%emt 0:00:23]} Kc5 {[%emt 0:00:06]} 44. Kd3 {[%emt 0:00:22]} Kd5 {[%emt 0:00:10]} 45. Nf3 {[%emt 0:00:02]} Ba6+ {[%emt 0:00:25]} 46. Ke3 {[%emt 0:00:13]} Bf1 {[%emt 0:00:35]} 47. Kf4 {[%emt 0:00:16]} Be2 {[%emt 0:00:50]} 48. Nd2 {[%emt 0:00:08]} Bc4 {[%emt 0:01:18]} 49. Nf3 {[%emt 0:00:13]} Be2 {[%emt 0:01:14]} 50. Nd2 {[%emt 0:00:06]} Bd1 {[%emt 0:00:50]} 51. Ne4 {[%emt 0:00:24]} Bc2 {[%emt 0:00:51]} 52. Nf2 {[%emt 0:00:13]} Kd4 {[%emt 0:00:19]} 53. Ng4 {[%emt 0:02:10]} Bg6 {[%emt 0:00:54]} 54. Nf2 {[%emt 0:00:19]} Bf5 {[%emt 0:00:21]} 55. Nd1 {[%emt 0:00:13]} Kd3 {[%emt 0:00:19]} 56. Ne3 {[%emt 0:00:52]} g6 {[%emt 0:00:38]} 57. Ng2 {[%emt 0:00:43]} Ke2 {[%emt 0:01:23]} 58. Ne3 {[%emt 0:00:23]} Kd3 {[%emt 0:01:19]} 59. Ng2 {[%emt 0:00:23]} Kd4 {[%emt 0:00:50]} 60. Ne3 {[%emt 0:00:10]} Bh3 {[%emt 0:00:25]} 1/2-1/2

[Event "FIDE WCCC Girls-10 2024"]
[Site "Montesilvano"]
[Date "2024.11.18"]
[Round "3.31"]
[White "Shtepa, Liubov"]
[Black "Sobirova, Mumtozbegim"]
[Result "0-1"]
[ECO "B24"]
[WhiteElo "1615"]
[BlackElo "1476"]
[PlyCount "90"]
[EventDate "2024.11.18"]
[EventType "swiss"]
[EventCountry "ITA"]
[TimeControl "5400+30"]

1. e4 {[%emt 0:00:04]} c5 {[%emt 0:00:49]} 2. Nc3 {[%emt 0:00:05]} e6 {[%emt 0:00:11]} 3. g3 {[%emt 0:00:04]} g6 {[%emt 0:00:47]} 4. Bg2 {[%emt 0:00:09]} Bg7 {[%emt 0:00:24]} 5. Nge2 {[%emt 0:00:11]} Ne7 {[%emt 0:00:40]} 6. O-O {[%emt 0:00:18]} O-O {[%emt 0:00:27]} 7. d3 {[%emt 1:33:09]} Nbc6 {[%emt 0:01:51]} 8. Be3 {[%emt 0:00:00]} b6 {[%emt 0:02:35]} 9. d4 {[%emt 0:00:00]} cxd4 {[%emt 0:00:46]} 10. Nxd4 {[%emt 0:00:00]} Bb7 {[%emt 0:06:48]} 11. f4 {[%emt 0:00:00]} f5 {[%emt 0:01:51]} 12. e5 {[%emt 0:00:00]} a6 {[%emt 0:00:45]} 13. Nxc6 {[%emt 0:00:00]} Bxc6 {[%emt 0:00:33]} 14. Qd6 {[%emt 0:00:00]} Nc8 {[%emt 0:02:35]} 15. Qd2 {[%emt 0:00:00]} Qc7 {[%emt 0:01:37]} 16. Rad1 {[%emt 0:00:00]} Rd8 {[%emt 0:01:27]} 17. Na4 {[%emt 0:00:00]} Rb8 {[%emt 0:08:29]} 18. Qc3 {[%emt 0:00:00]} Na7 {[%emt 0:02:43]} 19. Bxc6 {[%emt 0:00:00]} Nxc6 {[%emt 0:01:05]} 20. Rd3 {[%emt 0:00:00]} Bf8 {[%emt 0:07:47]} 21. a3 {[%emt 0:00:00]} d6 {[%emt 0:10:04]} 22. exd6 {[%emt 0:00:00]} Rxd6 {[%emt 0:00:38]} 23. Rfd1 {[%emt 0:00:00]} Rxd3 {[%emt 0:00:27]} 24. Rxd3 {[%emt 0:00:00]} Bg7 {[%emt 0:00:42]} 25. Qb3 {[%emt 0:00:00]} Qe7 {[%emt 0:06:14]} 26. Nxb6 {[%emt 0:00:00]} Kh8 {[%emt 0:06:35]} 27. Qa4 {[%emt 0:00:00]} Qe8 {[%emt 0:03:57]} 28. Qxa6 {[%emt 0:00:00]} Rd8 {[%emt 0:04:10]} 29. b4 {[%emt 0:00:00]} Rxd3 {[%emt 0:00:43]} 30. Qxd3 {[%emt 0:00:00]} e5 {[%emt 0:02:59]} 31. b5 {[%emt 0:00:00]} exf4 {[%emt 0:04:24]} 32. gxf4 {[%emt 0:00:00]} Na5 {[%emt 0:03:53]} 33. Qd2 {[%emt 0:00:15]} Nb7 {[%emt 0:00:48]} 34. a4 {[%emt 0:00:12]} Nd6 {[%emt 0:01:32]} 35. c4 {[%emt 0:01:08]} Qe4 {[%emt 0:00:55]} 36. c5 {[%emt 0:00:34]} Nf7 {[%emt 0:00:43]} 37. c6 {[%emt 0:00:08]} Qb1+ {[%emt 0:00:35]} 38. Kf2 {[%emt 0:00:13]} Qh1 {[%emt 0:01:49]} 39. Kg3 {[%emt 0:00:23]} g5 {[%emt 0:06:09]} 40. Qf2 {[%emt 0:00:40]} Nd6 {[%emt 0:00:51]} 41. Kh3 {[%emt 0:01:30]} Ne4 {[%emt 0:02:02]} 42. Qe2 {[%emt 0:00:41]} g4+ {[%emt 0:00:14]} 43. Kh4 {[%emt 0:00:28]} Bf6+ {[%emt 0:00:06]} 44. Kh5 {[%emt 0:00:42]} Ng3+ {[%emt 0:00:33]} 45. Kh6 {[%emt 0:00:10]} Nxe2 {[%emt 0:00:23]} 0-1

[Event "FIDE WCCC Girls-10 2024"]
[Site "Montesilvano"]
[Date "2024.11.18"]
[Round "3.33"]
[White "Milojevic, Dunja"]
[Black "Kovacikova, Simona"]
[Result "1-0"]
[ECO "D35"]
[WhiteElo "1610"]
[BlackElo "1412"]
[PlyCount "75"]
[EventDate "2024.11.18"]
[EventType "swiss"]
[EventCountry "ITA"]
[TimeControl "5400+30"]

1. d4 {[%emt 0:00:02]} d5 {[%emt 0:00:05]} 2. c4 {[%emt 0:00:05]} e6 {[%emt 0:00:06]} 3. Nc3 {[%emt 0:00:05]} Nf6 {[%emt 0:00:07]} 4. cxd5 {[%emt 0:00:05]} exd5 {[%emt 0:00:10]} 5. Bg5 {[%emt 0:00:13]} Be6 {[%emt 0:00:07]} 6. Qb3 {[%emt 0:01:15]} Nbd7 {[%emt 0:00:15]} 7. e3 {[%emt 0:01:47]} c6 {[%emt 0:00:24]} 8. Bd3 {[%emt 0:01:03]} b6 {[%emt 0:00:41]} 9. Nf3 {[%emt 0:01:26]} h6 {[%emt 0:00:14]} 10. Bh4 {[%emt 0:00:47]} g5 {[%emt 0:00:13]} 11. Bg3 {[%emt 0:00:37]} Nh5 {[%emt 0:00:15]} 12. Rc1 {[%emt 0:04:51]} Nxg3 {[%emt 0:01:14]} 13. hxg3 {[%emt 0:00:08]} Bg7 {[%emt 0:01:57]} 14. Qc2 {[%emt 0:01:43]} O-O {[%emt 0:01:36]} 15. Kf1 {[%emt 0:04:34]} Qf6 {[%emt 0:02:42]} 16. Bh7+ {[%emt 0:16:36]} Kh8 {[%emt 0:00:21]} 17. Bd3 {[%emt 0:09:00]} Kg8 {[%emt 0:00:39]} 18. Bh7+ {[%emt 0:00:00]} Kh8 {[%emt 0:00:21]} 19. Bd3 Kg8 {[%emt 0:00:39]} 20. Bh7+ {[%emt 0:00:00]} Kh8 {[%emt 0:00:21]} 21. Bd3 Rfe8 {[%emt 0:00:57]} 22. Re1 {[%emt 0:03:22]} Bg4 {[%emt 0:04:24]} 23. Nh2 {[%emt 0:02:26]} Bh5 {[%emt 0:07:24]} 24. Bf5 {[%emt 0:02:49]} Nf8 {[%emt 0:07:28]} 25. b4 {[%emt 0:05:41]} Re7 {[%emt 0:04:48]} 26. b5 {[%emt 0:04:05]} Qd6 {[%emt 0:17:35]} 27. g4 {[%emt 0:09:11]} Bg6 {[%emt 0:01:15]} 28. Nf3 {[%emt 0:00:24]} Rc7 {[%emt 0:06:03]} 29. Nxg5 {[%emt 0:02:31]} Qd8 {[%emt 0:09:08]} 30. Bxg6 {[%emt 0:03:32]} Qxg5 {[%emt 0:01:50]} 31. Bf5 {[%emt 0:00:27]} cxb5 {[%emt 0:01:39]} 32. Qb3 {[%emt 0:00:37]} Rd8 {[%emt 0:07:26]} 33. Rh5 {[%emt 0:00:42]} Qe7 {[%emt 0:04:26]} 34. Nxd5 {[%emt 0:00:40]} Rxd5 {[%emt 0:00:15]} 35. Qxd5 {[%emt 0:00:06]} Qg5 {[%emt 0:00:00]} 36. Qb3 {[%emt 0:00:54]} Qe7 37. Qd5 {[%emt 0:00:06]} a6 {[%emt 0:02:46]} 38. g5 {[%emt 0:01:41]} 1-0

[Event "FIDE WCCC Girls-10 2024"]
[Site "Montesilvano"]
[Date "2024.11.18"]
[Round "3.36"]
[White "Aragonda, Sahasra"]
[Black "Billod-Laillet, Camille"]
[Result "1-0"]
[ECO "D05"]
[WhiteElo "1526"]
[BlackElo "1732"]
[PlyCount "87"]
[EventDate "2024.11.18"]
[EventType "swiss"]
[EventCountry "ITA"]
[TimeControl "5400+30"]

1. d4 {[%emt 0:00:03]} d5 {[%emt 0:00:09]} 2. Nf3 {[%emt 0:00:07]} Nf6 {[%emt 0:00:12]} 3. e3 {[%emt 0:00:12]} e6 {[%emt 0:00:06]} 4. Bd3 {[%emt 0:00:14]} c5 {[%emt 0:00:10]} 5. b3 {[%emt 0:00:20]} Nc6 {[%emt 0:02:05]} 6. Bb2 {[%emt 0:00:32]} Bd6 {[%emt 0:00:49]} 7. Nbd2 {[%emt 0:01:09]} O-O {[%emt 0:00:38]} 8. O-O {[%emt 0:00:46]} Qc7 {[%emt 0:01:43]} 9. c4 {[%emt 0:05:38]} b6 {[%emt 0:02:54]} 10. dxc5 {[%emt 0:01:54]} Be7 {[%emt 0:02:52]} 11. cxb6 {[%emt 0:00:45]} axb6 {[%emt 0:00:48]} 12. a3 {[%emt 0:11:40]} Ba6 {[%emt 0:10:07]} 13. Qc2 h6 {[%emt 0:05:57]} 14. Rac1 {[%emt 0:13:35]} Rfc8 {[%emt 0:06:56]} 15. Qb1 {[%emt 0:10:54]} Qa7 {[%emt 0:10:06]} 16. b4 {[%emt 0:04:29]} Bb7 {[%emt 0:15:34]} 17. cxd5 {[%emt 0:05:03]} Nxd5 {[%emt 0:01:23]} 18. Nc4 {[%emt 0:03:54]} Rc7 {[%emt 0:05:07]} 19. Rfd1 {[%emt 0:06:13]} Rac8 {[%emt 0:03:48]} 20. Nfe5 {[%emt 0:04:55]} Ba8 {[%emt 0:08:20]} 21. Rc2 {[%emt 0:01:57]} Qb7 {[%emt 0:02:25]} 22. Be4 {[%emt 0:02:15]} Nxe5 {[%emt 0:02:04]} 23. Bxe5 {[%emt 0:00:38]} Rxc4 {[%emt 0:01:53]} 24. Rxc4 {[%emt 0:00:06]} Rxc4 {[%emt 0:00:35]} 25. Qb3 {[%emt 0:00:46]} Rc8 {[%emt 0:01:07]} 26. Qb2 {[%emt 0:01:01]} f6 {[%emt 0:01:39]} 27. Bg3 {[%emt 0:00:18]} Qc6 {[%emt 0:00:55]} 28. h3 {[%emt 0:02:05]} Qc3 {[%emt 0:00:44]} 29. Qe2 {[%emt 0:00:18]} f5 {[%emt 0:01:16]} 30. Bf3 {[%emt 0:00:53]} Qxa3 {[%emt 0:01:37]} 31. e4 {[%emt 0:00:54]} Nc3 {[%emt 0:03:15]} 32. Qe3 {[%emt 0:00:33]} Bxe4 {[%emt 0:04:32]} 33. Bxe4 {[%emt 0:00:33]} fxe4 {[%emt 0:00:36]} 34. Qxb6 {[%emt 0:02:09]} Kf7 {[%emt 0:01:19]} 35. Rd7 {[%emt 0:01:08]} Ne2+ {[%emt 0:01:06]} 36. Kh2 {[%emt 0:00:44]} Nc3 {[%emt 0:00:00]} 37. Kg1 {[%emt 0:00:16]} Ne2+ {[%emt 0:01:00]} 38. Kh2 {[%emt 0:00:44]} Nxg3 {[%emt 0:00:55]} 39. fxg3 {[%emt 0:00:15]} Ke8 {[%emt 0:01:08]} 40. Qxe6 {[%emt 0:01:39]} Qxb4 {[%emt 0:00:25]} 41. Ra7 {[%emt 0:03:04]} Rb8 {[%emt 0:01:44]} 42. Qg8+ {[%emt 0:00:32]} Bf8 {[%emt 0:00:31]} 43. Qf7+ {[%emt 0:00:22]} Kd8 {[%emt 0:00:12]} 44. Qd7# {[%emt 0:00:10]} 1-0

[Event "FIDE WCCC Girls-10 2024"]
[Site "Montesilvano"]
[Date "2024.11.18"]
[Round "3.37"]
[White "Minzat, Victoria"]
[Black "Sun, Yucan(Sd)"]
[Result "1/2-1/2"]
[ECO "B22"]
[WhiteElo "1505"]
[BlackElo "1725"]
[PlyCount "82"]
[EventDate "2024.11.18"]
[EventType "swiss"]
[EventCountry "ITA"]
[TimeControl "5400+30"]

1. e4 {[%emt 0:00:02]} c5 {[%emt 0:00:05]} 2. Nf3 {[%emt 0:00:12]} Nc6 {[%emt 0:00:07]} 3. c3 {[%emt 0:00:18]} d5 4. exd5 {[%emt 0:00:32]} Qxd5 {[%emt 0:00:25]} 5. d3 {[%emt 0:00:31]} Nf6 {[%emt 0:00:28]} 6. Be2 {[%emt 0:01:01]} Bf5 {[%emt 0:03:23]} 7. O-O {[%emt 0:02:11]} e6 {[%emt 0:02:06]} 8. Re1 {[%emt 0:04:46]} Rd8 {[%emt 0:04:01]} 9. d4 {[%emt 0:05:34]} cxd4 {[%emt 0:01:23]} 10. cxd4 {[%emt 0:00:16]} Bxb1 {[%emt 0:07:05]} 11. Rxb1 {[%emt 0:03:24]} Qxa2 {[%emt 0:00:53]} 12. Be3 {[%emt 0:01:34]} Bb4 {[%emt 0:02:42]} 13. Rf1 {[%emt 0:01:18]} O-O {[%emt 0:03:09]} 14. Qc2 h6 {[%emt 0:04:50]} 15. Bc4 {[%emt 0:09:33]} Qa5 {[%emt 0:01:59]} 16. Ra1 {[%emt 0:00:28]} Qc7 {[%emt 0:07:02]} 17. Rfc1 {[%emt 0:01:28]} Qb8 {[%emt 0:03:43]} 18. Qa4 {[%emt 0:01:21]} a5 {[%emt 0:03:17]} 19. Bb5 {[%emt 0:01:57]} Na7 {[%emt 0:03:54]} 20. Bd3 {[%emt 0:04:14]} b5 {[%emt 0:01:31]} 21. Qd1 {[%emt 0:01:56]} Nd5 {[%emt 0:01:32]} 22. h3 {[%emt 0:00:51]} Rd7 {[%emt 0:05:31]} 23. Qe2 {[%emt 0:58:33]} Rfd8 {[%emt 0:02:34]} 24. Ne5 {[%emt 0:00:00]} Rd6 {[%emt 0:03:19]} 25. Rc2 {[%emt 0:00:00]} f5 {[%emt 0:10:27]} 26. g3 {[%emt 0:00:00]} Ra6 {[%emt 0:06:28]} 27. Qh5 {[%emt 0:00:00]} Qb7 {[%emt 0:08:23]} 28. Qg6 {[%emt 0:00:00]} Nxe3 {[%emt 0:02:03]} 29. fxe3 {[%emt 0:00:00]} Bd6 {[%emt 0:00:26]} 30. Rac1 {[%emt 0:00:00]} Bxe5 {[%emt 0:00:36]} 31. dxe5 {[%emt 0:00:00]} Qf7 {[%emt 0:04:51]} 32. Qxf7+ {[%emt 0:00:00]} Kxf7 {[%emt 0:00:01]} 33. Bf1 {[%emt 0:00:00]} Rd5 {[%emt 0:01:33]} 34. Rc5 {[%emt 0:00:00]} g5 {[%emt 0:01:06]} 35. Kh1 {[%emt 0:00:00]} a4 {[%emt 0:00:34]} 36. Rc7+ {[%emt 0:00:00]} Ke8 {[%emt 0:01:19]} 37. R7c5 {[%emt 0:02:11]} Rxc5 {[%emt 0:00:37]} 38. Rxc5 {[%emt 0:00:12]} a3 {[%emt 0:06:07]} 39. bxa3 {[%emt 0:05:37]} Rxa3 {[%emt 0:00:30]} 40. Bxb5+ {[%emt 0:00:30]} Nxb5 {[%emt 0:00:30]} 41. Rxb5 {[%emt 0:00:30]} Rxe3 {[%emt 0:00:30]} 1/2-1/2

[Event "FIDE WCCC Girls-10 2024"]
[Site "Montesilvano"]
[Date "2024.11.18"]
[Round "3.38"]
[White "Blakhina Viktoryia"]
[Black "Giss, Annika"]
[Result "1-0"]
[ECO "B22"]
[WhiteElo "1436"]
[BlackElo "1586"]
[PlyCount "35"]
[EventDate "2024.11.18"]
[EventType "swiss"]
[EventCountry "ITA"]
[TimeControl "5400+30"]

1. e4 {[%emt 0:00:04]} c5 {[%emt 0:00:09]} 2. c3 {[%emt 0:00:05]} Nf6 {[%emt 0:00:08]} 3. e5 {[%emt 0:00:05]} Nd5 {[%emt 0:00:23]} 4. d4 {[%emt 0:00:15]} cxd4 {[%emt 0:00:15]} 5. Qxd4 {[%emt 0:00:07]} e6 {[%emt 0:00:13]} 6. Bd3 {[%emt 0:00:20]} Nc6 {[%emt 0:00:14]} 7. Qe4 {[%emt 0:00:07]} d6 {[%emt 0:01:40]} 8. Nf3 {[%emt 0:04:42]} Be7 {[%emt 0:03:12]} 9. O-O {[%emt 0:02:06]} f5 {[%emt 0:04:05]} 10. Qe2 {[%emt 0:02:35]} O-O {[%emt 0:01:04]} 11. Rd1 {[%emt 0:14:47]} Qc7 {[%emt 0:08:48]} 12. c4 {[%emt 0:10:54]} Nb6 {[%emt 0:00:37]} 13. Bf4 {[%emt 0:01:46]} Nd7 {[%emt 0:08:32]} 14. exd6 {[%emt 0:03:06]} Qd8 {[%emt 0:02:36]} 15. Qxe6+ {[%emt 0:07:21]} Kh8 {[%emt 0:05:10]} 16. dxe7 {[%emt 0:00:57]} Nxe7 {[%emt 0:00:19]} 17. Bd6 {[%emt 0:07:01]} Re8 {[%emt 0:00:16]} 18. Ng5 {[%emt 0:00:30]} 1-0

[Event "FIDE WCCC Girls-10 2024"]
[Site "Montesilvano"]
[Date "2024.11.18"]
[Round "3.39"]
[White "Foong, Livia"]
[Black "Macchia-Shahar, Yali"]
[Result "0-1"]
[ECO "D02"]
[WhiteElo "1461"]
[BlackElo "1564"]
[PlyCount "118"]
[EventDate "2024.11.18"]
[EventType "swiss"]
[EventCountry "ITA"]
[TimeControl "5400+30"]

1. d4 {[%emt 0:00:03]} d5 {[%emt 0:00:08]} 2. Nf3 {[%emt 0:00:05]} Nf6 {[%emt 0:00:15]} 3. Bf4 {[%emt 0:00:05]} Bf5 {[%emt 0:00:19]} 4. e3 {[%emt 0:00:06]} e6 {[%emt 0:00:13]} 5. Be2 {[%emt 0:00:05]} c6 {[%emt 0:00:22]} 6. O-O {[%emt 0:00:07]} Be7 {[%emt 0:00:46]} 7. c4 {[%emt 0:00:07]} h6 {[%emt 0:01:09]} 8. Nc3 {[%emt 0:00:15]} O-O {[%emt 0:00:41]} 9. Qd2 {[%emt 0:00:08]} Nbd7 {[%emt 0:00:49]} 10. Rac1 {[%emt 0:00:29]} Nh5 {[%emt 0:00:37]} 11. Bg3 {[%emt 0:00:59]} Nxg3 {[%emt 0:00:43]} 12. hxg3 {[%emt 0:00:17]} Nf6 {[%emt 0:00:50]} 13. Rfe1 {[%emt 0:00:40]} c5 {[%emt 0:09:30]} 14. b3 {[%emt 0:01:03]} Re8 {[%emt 0:07:58]} 15. Ne5 {[%emt 0:01:05]} Ne4 {[%emt 0:04:28]} 16. g4 {[%emt 0:00:33]} Nxd2 {[%emt 0:00:11]} 17. gxf5 {[%emt 0:00:12]} Ne4 {[%emt 0:00:57]} 18. fxe6 {[%emt 0:00:28]} fxe6 {[%emt 0:01:03]} 19. cxd5 {[%emt 0:00:32]} exd5 {[%emt 0:01:13]} 20. Nxe4 {[%emt 0:00:19]} dxe4 {[%emt 0:01:22]} 21. Bc4+ {[%emt 0:00:15]} Kh7 {[%emt 0:01:56]} 22. Bf7 {[%emt 0:00:29]} Rf8 {[%emt 0:01:54]} 23. Bg6+ {[%emt 0:00:30]} Kg8 {[%emt 0:01:27]} 24. dxc5 {[%emt 0:00:51]} Qd2 {[%emt 0:01:44]} 25. Rf1 {[%emt 0:01:08]} Qd8 {[%emt 1:02:25]} 26. Rfe1 {[%emt 0:00:00]} Qd2 {[%emt 0:00:00]} 27. Rf1 {[%emt 0:01:00]} Bh4 {[%emt 0:00:00]} 28. g3 {[%emt 0:00:16]} Bxg3 {[%emt 0:00:00]} 29. fxg3 {[%emt 0:00:38]} Qxe3+ {[%emt 0:00:00]} 30. Kg2 {[%emt 0:00:40]} Rxf1 {[%emt 0:00:00]} 31. Rxf1 {[%emt 0:00:08]} Qd2+ {[%emt 0:00:00]} 32. Rf2 {[%emt 0:00:15]} Qg5 {[%emt 0:00:00]} 33. Bf7+ {[%emt 0:00:33]} Kh8 {[%emt 0:00:00]} 34. Nc4 {[%emt 0:01:23]} e3 {[%emt 0:00:00]} 35. Re2 {[%emt 0:00:10]} Rf8 {[%emt 0:00:00]} 36. Be6 {[%emt 0:01:02]} Rf2+ {[%emt 0:00:00]} 37. Rxf2 {[%emt 0:00:09]} exf2 {[%emt 0:00:00]} 38. Kxf2 {[%emt 0:00:10]} Qf6+ {[%emt 0:00:00]} 39. Kg2 {[%emt 0:00:24]} Qxe6 {[%emt 0:00:00]} 40. Kf2 {[%emt 0:00:27]} Qf5+ {[%emt 0:00:00]} 41. Ke2 {[%emt 0:00:15]} Qxc5 {[%emt 0:00:00]} 42. Kd3 {[%emt 0:00:06]} Qf2 {[%emt 0:00:00]} 43. Nd2 {[%emt 0:00:25]} Qxg3+ {[%emt 0:00:00]} 44. Kc2 {[%emt 0:00:08]} Qd6 {[%emt 0:00:00]} 45. Nc4 {[%emt 0:00:18]} Qc5 {[%emt 0:00:00]} 46. Kb2 {[%emt 0:00:16]} b5 {[%emt 0:00:00]} 47. Nd2 {[%emt 0:00:43]} Qb4 {[%emt 0:00:00]} 48. Nb1 {[%emt 0:00:33]} g5 {[%emt 0:00:00]} 49. a3 {[%emt 0:00:10]} Qf4 {[%emt 0:00:00]} 50. Ka1 {[%emt 0:00:21]} g4 {[%emt 0:00:00]} 51. a4 {[%emt 0:00:26]} bxa4 {[%emt 0:00:00]} 52. bxa4 {[%emt 0:00:07]} g3 {[%emt 0:00:00]} 53. a5 {[%emt 0:00:23]} g2 {[%emt 0:00:00]} 54. a6 {[%emt 0:00:06]} g1=Q {[%emt 0:00:00]} 55. Kb2 {[%emt 0:00:22]} Qfe3 {[%emt 0:00:00]} 56. Nc3 {[%emt 0:00:26]} Qgc1+ {[%emt 0:00:00]} 57. Ka2 {[%emt 0:00:27]} Qcxc3 {[%emt 0:00:00]} 58. Kb1 {[%emt 0:00:13]} Qee1+ {[%emt 0:00:00]} 59. Ka2 {[%emt 0:00:06]} Qea1# {[%emt 0:00:00]} 0-1

[Event "FIDE WCCC Girls-10 2024"]
[Site "Montesilvano"]
[Date "2024.11.18"]
[Round "3.41"]
[White "Mamarasulova, Yasmina"]
[Black "Serradell Munoz, Silvia"]
[Result "1-0"]
[ECO "E56"]
[WhiteElo "1444"]
[BlackElo "1670"]
[PlyCount "123"]
[EventDate "2024.11.18"]
[EventType "swiss"]
[EventCountry "ITA"]
[TimeControl "5400+30"]

1. d4 {[%emt 0:00:02]} Nf6 {[%emt 0:00:16]} 2. c4 {[%emt 0:00:38]} e6 {[%emt 0:00:29]} 3. Nc3 {[%emt 0:00:50]} Bb4 {[%emt 0:00:35]} 4. e3 {[%emt 0:00:31]} O-O {[%emt 0:00:33]} 5. Bd3 {[%emt 0:00:30]} c5 {[%emt 0:00:42]} 6. Nf3 {[%emt 0:00:09]} Nc6 {[%emt 0:00:24]} 7. O-O {[%emt 0:02:50]} d5 {[%emt 0:01:00]} 8. Ne5 {[%emt 0:14:02]} cxd4 {[%emt 0:01:19]} 9. Nxc6 {[%emt 0:00:48]} bxc6 {[%emt 0:00:36]} 10. exd4 {[%emt 0:03:40]} Ba6 {[%emt 0:03:27]} 11. cxd5 {[%emt 0:17:00]} Bxd3 {[%emt 0:02:20]} 12. Qxd3 {[%emt 0:03:00]} cxd5 {[%emt 0:00:22]} 13. Bg5 {[%emt 0:07:00]} h6 {[%emt 0:01:47]} 14. Bh4 {[%emt 0:02:30]} Be7 {[%emt 0:02:44]} 15. a3 {[%emt 0:02:31]} Rb8 {[%emt 0:03:10]} 16. b4 {[%emt 0:07:12]} Nd7 {[%emt 1:18:46]} 17. Bxe7 {[%emt 0:02:00]} Qxe7 {[%emt 0:00:00]} 18. Na4 {[%emt 0:00:27]} Rfc8 {[%emt 0:00:00]} 19. Rab1 {[%emt 0:05:37]} Qd6 {[%emt 0:00:00]} 20. Nc5 {[%emt 0:00:21]} Nxc5 {[%emt 0:02:00]} 21. dxc5 {[%emt 0:02:08]} Qd7 {[%emt 0:00:00]} 22. Rfc1 {[%emt 0:00:28]} Qb5 {[%emt 0:00:00]} 23. Qxb5 {[%emt 0:01:17]} Rxb5 {[%emt 0:00:00]} 24. a4 {[%emt 0:00:16]} Rb7 {[%emt 0:00:00]} 25. c6 {[%emt 0:01:31]} Rb6 {[%emt 0:00:00]} 26. b5 {[%emt 0:00:00]} Kf8 {[%emt 0:00:00]} 27. a5 {[%emt 0:06:01]} Rbb8 {[%emt 0:00:00]} 28. Kf1 {[%emt 0:00:13]} Ke7 {[%emt 0:00:00]} 29. Ke2 {[%emt 0:00:19]} Kd6 {[%emt 0:00:00]} 30. Kd3 {[%emt 0:00:07]} e5 {[%emt 0:00:00]} 31. g3 {[%emt 0:01:53]} g5 {[%emt 0:00:00]} 32. Rh1 {[%emt 0:01:00]} f5 {[%emt 0:00:00]} 33. h4 {[%emt 0:00:16]} g4 {[%emt 0:00:00]} 34. Rhc1 {[%emt 0:00:53]} h5 {[%emt 0:00:00]} 35. Rc2 {[%emt 0:02:22]} Ra8 {[%emt 0:00:00]} 36. Rbc1 {[%emt 0:01:38]} Rab8 {[%emt 0:00:00]} 37. Rb1 {[%emt 0:17:00]} Rc7 {[%emt 0:00:00]} 38. a6 {[%emt 0:00:00]} Rb6 {[%emt 0:00:00]} 39. Rcc1 {[%emt 0:00:00]} Rc8 {[%emt 0:00:00]} 40. Rc2 {[%emt 0:00:00]} Kc7 {[%emt 0:00:00]} 41. Rc5 {[%emt 0:00:00]} Rd8 {[%emt 0:00:00]} 42. Rb4 {[%emt 0:00:00]} Kd6 {[%emt 0:00:00]} 43. Rc1 {[%emt 0:00:00]} Rdb8 {[%emt 0:00:00]} 44. Rb2 {[%emt 0:00:00]} Kc7 {[%emt 0:12:00]} 45. Rc5 {[%emt 0:00:00]} Rd8 {[%emt 0:00:00]} 46. Rc1 {[%emt 0:04:30]} Rd6 {[%emt 0:00:00]} 47. Rbb1 {[%emt 0:00:00]} Rd8 {[%emt 0:00:00]} 48. Rc5 {[%emt 0:00:00]} Kd6 {[%emt 0:00:00]} 49. c7 {[%emt 0:00:00]} Rc8 {[%emt 0:00:00]} 50. Rbc1 {[%emt 0:00:00]} f4 {[%emt 0:00:00]} 51. gxf4 {[%emt 0:00:00]} exf4 {[%emt 0:00:00]} 52. Kd4 {[%emt 0:00:00]} Kd7 {[%emt 0:00:00]} 53. Rxd5+ {[%emt 0:00:00]} Rd6 {[%emt 0:00:00]} 54. Rxd6+ {[%emt 0:00:00]} Kxd6 {[%emt 0:00:00]} 55. Ke4 {[%emt 0:00:00]} g3 {[%emt 0:00:00]} 56. fxg3 {[%emt 0:00:00]} fxg3 {[%emt 0:00:00]} 57. Kf3 {[%emt 0:00:00]} Kd7 {[%emt 0:00:00]} 58. Kxg3 {[%emt 0:00:00]} Rg8+ {[%emt 0:00:00]} 59. Kf4 {[%emt 0:00:00]} Rg4+ {[%emt 0:00:00]} 60. Kf5 {[%emt 0:00:00]} Kc8 {[%emt 0:00:00]} 61. b6 {[%emt 0:00:00]} axb6 {[%emt 0:00:00]} 62. Ra1 {[%emt 0:00:00]} 1-0